fUST/lending_fUST_20241227
["ID","MTS","AMOUNT","RATE_DAILY","PERIOD"]
[346777303,1735278643892,-500.0,9.402e-05,2]
[346777304,1735278643901,-151.0,9.402e-05,2]
[346777305,1735278643910,-180.89743198,9.402e-05,2]
[346777306,1735278643919,-500.0,9.402e-05,2]
[346777307,1735278643928,-500.0,9.402e-05,2]
[346777308,1735278643937,-501.8900386,9.402e-05,2]
[346777309,1735278643946,-500.0,9.402e-05,2]
[346777310,1735278643955,-500.0,9.402e-05,2]
[346777311,1735278643964,-588.51,9.402e-05,2]
[346777312,1735278643973,-500.0,9.402e-05,2]
[346777313,1735278643982,-151.0,9.402e-05,2]
[346777314,1735278643991,-500.0,9.402e-05,2]
[346777315,1735278644000,-500.0,9.402e-05,2]
[346777316,1735278644009,-500.0,9.402e-05,2]
[346777317,1735278644019,-500.0,9.402e-05,2]
[346777318,1735278644027,-500.0,9.402e-05,2]
[346777319,1735278644036,-500.0,9.402e-05,2]
[346777320,1735278644046,-500.0,9.402e-05,2]
[346777321,1735278644058,-500.0,9.402e-05,2]
[346777322,1735278644068,-500.0,9.402e-05,2]
[346777323,1735278644077,-500.0,9.402e-05,2]
[346777324,1735278644086,-500.0,9.402e-05,2]
[346777325,1735278644095,-500.0,9.402e-05,2]
[346777326,1735278644106,-500.93,9.402e-05,2]
[346777327,1735278644115,-1327.754492,9.402e-05,2]
[346777328,1735278644124,-1327.754492,9.402e-05,2]
[346777329,1735278644133,-1327.754492,9.402e-05,2]
[346777330,1735278644143,-1327.754492,9.402e-05,2]
[346777331,1735278644153,-500.0,9.403e-05,2]
[346777332,1735278644162,-4470.14,9.403e-05,2]
[346777333,1735278644171,-500.0,9.403e-05,2]
[346777334,1735278644182,-524.59,9.403e-05,2]
[346777335,1735278644191,-1424.54,9.403e-05,2]
[346777336,1735278644200,-500.0,9.403e-05,2]
[346777337,1735278644209,-500.0,9.403e-05,2]
[346777338,1735278644218,-500.0,9.403e-05,2]
[346777339,1735278644227,-500.0,9.403e-05,2]
[346777340,1735278644237,-500.0,9.403e-05,2]
[346777341,1735278644247,-660.31,9.403e-05,2]
[346777342,1735278644256,-500.0,9.404e-05,2]
[346777343,1735278644267,-500.0,9.404e-05,2]
[346777344,1735278644276,-500.0,9.404e-05,2]
[346777345,1735278644286,-500.0,9.404e-05,2]
[346777346,1735278644295,-500.0,9.404e-05,2]
[346777347,1735278644306,-500.0,9.404e-05,2]
[346777348,1735278644315,-500.0,9.404e-05,2]
[346777349,1735278644325,-501.0480722,9.404e-05,2]
[346777350,1735278644334,-500.0,9.404e-05,2]
[346777351,1735278644344,-491.66458463,9.404e-05,2]
[346777367,1735278666566,24900.0,8.409e-05,2]
[346777521,1735278931362,-3494.98029342,9.206e-05,2]
[346777522,1735278931384,-3859.29,9.213e-05,2]
[346777523,1735278931407,-212.2726844,9.316e-05,2]
[346777524,1735278931428,-300.0,9.399e-05,2]
[346777525,1735278931449,-300.0,9.399e-05,2]
[346777526,1735278931470,-500.0,9.4e-05,2]
[346777527,1735278931492,-500.0,9.4e-05,2]
[346777528,1735278931514,-500.0,9.4e-05,2]
[346777529,1735278931536,-333.35702218,9.4e-05,2]
[346777593,1735279178607,153.0,8.647e-05,2]
[346777646,1735279307865,3494.98029342,8.933e-05,2]
[346777699,1735279476182,500.0,0.00020483,120]
[346777700,1735279599746,24900.0,8.402e-05,2]
[346777701,1735279693681,-300.0,9.397e-05,2]
[346777702,1735279693708,-300.0,9.397e-05,2]
[346777703,1735279693840,-292.54445508,9.398e-05,2]
[346777704,1735279693872,-262.18554492,9.398e-05,2]
[346777705,1735279693896,-500.0,9.398e-05,2]
[346777706,1735279693923,-728.24404178,9.398e-05,2]
[346777707,1735279718572,-1538.08906754,9.398e-05,2]
[346777708,1735279718624,-192.41689068,9.398e-05,2]
[346777709,1735279718650,-628.0,9.398e-05,2]
[346777710,1735279718675,-67.30036705,9.398e-05,2]
[346777711,1735279743638,-300.0,9.397e-05,2]
[346777712,1735279743666,-300.0,9.397e-05,2]
[346777713,1735279743694,-864.12963295,9.398e-05,2]
[346777714,1735279743721,-122.47556109,9.398e-05,2]
[346777715,1735279743915,-455.90443891,9.398e-05,2]
[346777716,1735279743942,-484.37270568,9.398e-05,2]
[346777717,1735279768766,-15.62729432,9.398e-05,2]
[346777718,1735279768808,-1621.5155465,9.398e-05,2]
[346777719,1735279768842,-662.85715918,9.398e-05,2]
[346777720,1735279793603,-1683.14284082,9.398e-05,2]
[346777721,1735279793657,-949.29485257,9.398e-05,2]
[346777722,1735279828143,300.0,0.000129,5]
[346777730,1735279838615,-300.0,9.39e-05,4]
[346777731,1735279838624,-300.0,9.39e-05,3]
[346777732,1735279838634,-300.0,9.397e-05,2]
[346777733,1735279838643,-300.0,9.397e-05,2]
[346777734,1735279838652,-2801.83960093,9.398e-05,2]
[346777735,1735279838662,-108.66398162,9.398e-05,2]
[346777736,1735279838673,-391.33601838,9.398e-05,2]
[346777737,1735279838682,-385.37052902,9.398e-05,2]
[346777794,1735279840691,-146.23947098,9.398e-05,2]
[346777795,1735279840700,-626.55466525,9.398e-05,2]
[346777800,1735279843972,-2285.02533475,9.398e-05,2]
[346777801,1735279843982,-500.0,9.398e-05,2]
[346777802,1735279843992,-500.0,9.398e-05,2]
[346777803,1735279844001,-500.0,9.398e-05,2]
[346777804,1735279844011,-2356.3,9.398e-05,2]
[346777805,1735279844020,-1461.7,9.398e-05,2]
[346777806,1735279844029,-601.84,9.398e-05,2]
[346777807,1735279844039,-1095.79,9.398e-05,2]
[346777808,1735279844049,-892.62,9.398e-05,2]
[346777809,1735279844058,-500.0,9.398e-05,2]
[346777810,1735279844068,-500.0,9.398e-05,2]
[346777811,1735279844077,-701.45,9.398e-05,2]
[346777812,1735279844087,-500.0,9.398e-05,2]
[346777813,1735279844096,-500.0,9.399e-05,2]
[346777814,1735279844106,-500.0,9.399e-05,2]
[346777815,1735279844116,-500.0,9.399e-05,2]
[346777816,1735279844125,-500.0,9.399e-05,2]
[346777817,1735279844134,-228.35038073,9.399e-05,2]
[346777818,1735279844144,-500.0,9.399e-05,2]
[346777819,1735279844153,-500.0,9.399e-05,2]
[346777820,1735279844163,-500.0,9.399e-05,2]
[346777821,1735279844172,-284.21120396,9.399e-05,2]
[346777823,1735279846019,300.0,0.000129,5]
[346777825,1735279958635,199.81,0.00012,5]
[346777828,1735280748338,24900.0,8.401e-05,2]
[346777832,1735280973284,-300.0,9.395e-05,2]
[346777833,1735280973312,-300.0,9.395e-05,2]
[346777834,1735280973339,-912.92607995,9.396e-05,2]
[346777835,1735280973375,-851.01930505,9.396e-05,2]
[346777836,1735280998381,-523.384615,9.396e-05,2]
[346777837,1735280998410,-500.0,9.396e-05,2]
[346777838,1735280998437,-536.82037265,9.396e-05,2]
[346777839,1735280998476,-318.60962735,9.396e-05,2]
[346777840,1735280998502,-554.29,9.396e-05,2]
[346777841,1735280998528,-44.76207769,9.396e-05,2]
[346777957,1735281038572,-300.0,9.395e-05,2]
[346777959,1735281038582,-116.33,9.395e-05,2]
[346778004,1735281043664,-183.67,9.395e-05,2]
[346778005,1735281043674,-115.54193878,9.396e-05,2]
[346778035,1735281278998,153.0,7.766e-05,2]
[346778036,1735281280029,153.0,7.766e-05,2]
[346778037,1735281280585,153.0,7.766e-05,2]
[346778038,1735281281143,153.0,7.766e-05,2]
[346778039,1735281281842,153.0,7.766e-05,2]
[346778040,1735281282181,500.0,0.00020478,120]
[346778041,1735281282214,153.0,7.766e-05,2]
[346778042,1735281282732,153.0,7.766e-05,2]
[346778043,1735281283281,153.0,7.766e-05,2]
[346778044,1735281283813,157.96,7.766e-05,2]
[346778046,1735281654365,24900.0,8.399e-05,2]
[346778047,1735281881893,160.4,8.379e-05,2]
[346778048,1735282006098,-238.39177109,9.299e-05,2]
[346778049,1735282105423,-500.0,9.373e-05,2]
[346778051,1735282105449,-300.0,9.392e-05,2]
[346778053,1735282105475,-110.91775257,9.392e-05,2]
[346778055,1735282105505,-189.08224743,9.392e-05,2]
[346778056,1735282105531,-500.0,9.393e-05,2]
[346778058,1735282105556,-500.0,9.393e-05,2]
[346778059,1735282105582,-253.37856223,9.393e-05,2]
[346778061,1735282130371,-246.62143777,9.393e-05,2]
[346778062,1735282130398,-500.0,9.393e-05,2]
[346778063,1735282130425,-377.40308255,9.393e-05,2]
[346778064,1735282130709,-122.59691745,9.393e-05,2]
[346778065,1735282130735,-402.86235385,9.393e-05,2]
[346778066,1735282130762,-595.08,9.393e-05,2]
[346778067,1735282130788,-337.28577802,9.393e-05,2]
[346778068,1735282130816,-31.70333159,9.393e-05,2]
[346778069,1735282155447,-300.0,9.392e-05,2]
[346778070,1735282155478,-300.0,9.392e-05,2]
[346778071,1735282155505,-500.0,9.393e-05,2]
[346778072,1735282155531,-441.79943893,9.393e-05,2]
[346778073,1735282155564,-58.20056107,9.393e-05,2]
[346778074,1735282155592,-468.29666841,9.393e-05,2]
[346778075,1735282155621,-423.75441005,9.393e-05,2]
[346778076,1735282180372,-224.58824299,9.393e-05,2]
[346778077,1735282180398,-500.0,9.393e-05,2]
[346778078,1735282180427,-76.24558995,9.393e-05,2]
[346778079,1735282180453,-500.0,9.393e-05,2]
[346778080,1735282180480,-290.80662756,9.393e-05,2]
[346778081,1735282180512,-209.19337244,9.393e-05,2]
[346778082,1735282180540,-500.0,9.393e-05,2]
[346778083,1735282180567,-500.0,9.393e-05,2]
[346778084,1735282180593,-293.11616706,9.393e-05,2]
[346778085,1735282205422,-300.0,9.392e-05,2]
[346778086,1735282205452,-300.0,9.392e-05,2]
[346778087,1735282205487,-500.0,9.393e-05,2]
[346778088,1735282205515,-347.28108892,9.393e-05,2]
[346778089,1735282205543,-206.23837158,9.393e-05,2]
[346778090,1735282205582,-293.76162842,9.393e-05,2]
[346778091,1735282205609,-500.0,9.393e-05,2]
[346778092,1735282205638,-103.42098597,9.393e-05,2]
[346778128,1735282231894,-431.29385124,9.393e-05,2]
[346778130,1735282231903,-2493.42,9.393e-05,2]
[346778131,1735282231912,-778.05,9.393e-05,2]
[346778133,1735282231923,-500.0,9.393e-05,2]
[346778135,1735282231932,-500.0,9.393e-05,2]
[346778137,1735282231941,-500.0,9.393e-05,2]
[346778139,1735282231951,-103.46284697,9.393e-05,2]
[346778141,1735282231962,-500.0,9.393e-05,2]
[346778143,1735282231971,-500.0,9.393e-05,2]
[346778145,1735282231980,-500.0,9.393e-05,2]
[346778147,1735282231990,-487.59640993,9.393e-05,2]
[346778149,1735282231999,-192.68181935,9.393e-05,2]
[346778151,1735282232008,-500.0,9.393e-05,2]
[346778153,1735282232017,-500.0,9.393e-05,2]
[346778155,1735282232026,-500.0,9.393e-05,2]
[346778157,1735282232036,-500.0,9.393e-05,2]
[346778159,1735282232046,-500.0,9.394e-05,2]
[346778161,1735282232055,-500.0,9.394e-05,2]
[346778163,1735282232064,-500.0,9.394e-05,2]
[346778165,1735282232073,-500.0,9.394e-05,2]
[346778167,1735282232082,-500.0,9.394e-05,2]
[346778169,1735282232091,-500.0,9.394e-05,2]
[346778171,1735282232101,-732.23,9.394e-05,2]
[346778173,1735282232110,-500.0,9.394e-05,2]
[346778175,1735282232119,-500.0,9.394e-05,2]
[346778177,1735282232128,-580.01,9.394e-05,2]
[346778179,1735282232138,-500.0,9.394e-05,2]
[346778182,1735282232158,-504.0,9.394e-05,2]
[346778185,1735282232169,-500.0,9.394e-05,2]
[346778187,1735282232179,-500.0,9.394e-05,2]
[346778188,1735282232189,-916.15,9.394e-05,2]
[346778189,1735282232199,-759.02,9.394e-05,2]
[346778190,1735282232209,-500.0,9.394e-05,2]
[346778191,1735282232219,-500.0,9.394e-05,2]
[346778192,1735282232228,-500.0,9.394e-05,2]
[346778193,1735282232240,-500.0,9.394e-05,2]
[346778194,1735282232250,-500.0,9.394e-05,2]
[346778195,1735282232260,-997.52,9.394e-05,2]
[346778196,1735282232270,-500.0,9.394e-05,2]
[346778197,1735282232281,-647.86,9.394e-05,2]
[346778198,1735282232291,-595.3,9.394e-05,2]
[346778199,1735282232301,-1721.31,9.394e-05,2]
[346778201,1735282232311,-500.0,9.394e-05,2]
[346778203,1735282232320,-500.0,9.394e-05,2]
[346778204,1735282232330,-500.0,9.394e-05,2]
[346778205,1735282232340,-582.03,9.394e-05,2]
[346778206,1735282232350,-500.0,9.394e-05,2]
[346778207,1735282232359,-500.0,9.394e-05,2]
[346778208,1735282232369,-500.0,9.394e-05,2]
[346778209,1735282232379,-500.0,9.394e-05,2]
[346778210,1735282232389,-791.98,9.394e-05,2]
[346778211,1735282232399,-500.0,9.394e-05,2]
[346778212,1735282232409,-7677.98507252,9.394e-05,2]
[346778213,1735282232422,-706.42492748,9.394e-05,2]
[346778214,1735282232432,-934.64,9.394e-05,2]
[346778215,1735282232442,-500.0,9.394e-05,2]
[346778216,1735282232451,-587.62912717,9.394e-05,2]
[346778217,1735282232461,-939.65,9.394e-05,2]
[346778218,1735282232471,-919.03,9.394e-05,2]
[346778219,1735282232480,-2831.93,9.394e-05,2]
[346778220,1735282232492,-500.0,9.394e-05,2]
[346778221,1735282232502,-500.0,9.394e-05,2]
[346778222,1735282232512,-500.0,9.394e-05,2]
[346778223,1735282232521,-397.22590287,9.394e-05,2]
[346778229,1735282237867,-102.77409713,9.394e-05,2]
[346778230,1735282237877,-500.0,9.394e-05,2]
[346778231,1735282237891,-500.0,9.394e-05,2]
[346778232,1735282237901,-500.0,9.394e-05,2]
[346778233,1735282237910,-806.12,9.394e-05,2]
[346778234,1735282237921,-500.0,9.394e-05,2]
[346778235,1735282237932,-1250.01,9.394e-05,2]
[346778236,1735282237942,-500.0,9.394e-05,2]
[346778237,1735282238066,-496.02639343,9.394e-05,2]
[346778238,1735282238078,-3.97360657,9.394e-05,2]
[346778239,1735282238088,-519.86,9.394e-05,2]
[346778240,1735282238098,-1587.12,9.394e-05,2]
[346778241,1735282238107,-500.0,9.394e-05,2]
[346778242,1735282238117,-504.80351625,9.394e-05,2]
[346778243,1735282238126,-500.0,9.394e-05,2]
[346778244,1735282238135,-718.43,9.394e-05,2]
[346778245,1735282238144,-1166.25,9.394e-05,2]
[346778246,1735282238154,-500.0,9.394e-05,2]
[346778247,1735282238163,-629.16,9.394e-05,2]
[346778248,1735282238172,-500.0,9.394e-05,2]
[346778249,1735282238182,-500.0,9.394e-05,2]
[346778250,1735282238192,-503.49951691,9.394e-05,2]
[346778251,1735282238201,-727.4,9.394e-05,2]
[346778252,1735282238211,-500.13,9.395e-05,2]
[346778253,1735282238220,-20911.03,9.395e-05,2]
[346778254,1735282238229,-500.0,9.395e-05,2]
[346778255,1735282238239,-162.66760853,9.395e-05,2]
[346778256,1735282238248,-500.0,9.396e-05,2]
[346778257,1735282238257,-500.0,9.396e-05,2]
[346778258,1735282238267,-500.0,9.396e-05,2]
[346778259,1735282238276,-500.0,9.396e-05,2]
[346778260,1735282238286,-500.0,9.396e-05,2]
[346778261,1735282238295,-500.0,9.396e-05,2]
[346778262,1735282238305,-521.68,9.396e-05,2]
[346778263,1735282238314,-521.68,9.396e-05,2]
[346778264,1735282238323,-500.0,9.396e-05,2]
[346778265,1735282238333,-500.0,9.396e-05,2]
[346778266,1735282238342,-504.05274087,9.396e-05,2]
[346778267,1735282238352,-552.12,9.396e-05,2]
[346778268,1735282238361,-500.0,9.396e-05,2]
[346778269,1735282238371,-500.0,9.396e-05,2]
[346778270,1735282238381,-1253.500632,9.396e-05,2]
[346778271,1735282238390,-1253.500632,9.396e-05,2]
[346778272,1735282238400,-500.0,9.396e-05,2]
[346778273,1735282238410,-1253.500632,9.396e-05,2]
[346778274,1735282238420,-1253.500632,9.396e-05,2]
[346778275,1735282238430,-500.0,9.396e-05,2]
[346778276,1735282238439,-500.0,9.396e-05,2]
[346778277,1735282238448,-249.35303949,9.396e-05,2]
[346778278,1735282238458,-500.0,9.396e-05,2]
[346778279,1735282238467,-247.45068403,9.396e-05,2]
[346778280,1735282238477,-500.0,9.396e-05,2]
[346778281,1735282238488,-462.50722586,9.396e-05,2]
[346778282,1735282238497,-500.0,9.396e-05,2]
[346778283,1735282238507,-500.0,9.396e-05,2]
[346778284,1735282238516,-503.51220669,9.396e-05,2]
[346778285,1735282238526,-151.0,9.396e-05,2]
[346778286,1735282238536,-151.0,9.396e-05,2]
[346778287,1735282238545,-151.0,9.396e-05,2]
[346778288,1735282238555,-225.3724836,9.396e-05,2]
[346778289,1735282238564,-500.0,9.396e-05,2]
[346778290,1735282238574,-500.0,9.396e-05,2]
[346778291,1735282238585,-504.5374979,9.396e-05,2]
[346778292,1735282238594,-500.0,9.396e-05,2]
[346778293,1735282238603,-502.71776213,9.396e-05,2]
[346778294,1735282238613,-500.0,9.396e-05,2]
[346778295,1735282238625,-500.0,9.396e-05,2]
[346778296,1735282238636,-500.0,9.396e-05,2]
[346778297,1735282238645,-500.0,9.396e-05,2]
[346778298,1735282238655,-608.44,9.396e-05,2]
[346778299,1735282238664,-500.0,9.396e-05,2]
[346778300,1735282238674,-500.0,9.396e-05,2]
[346778301,1735282238683,-500.0,9.396e-05,2]
[346778302,1735282238692,-500.0,9.396e-05,2]
[346778303,1735282238702,-504.25215801,9.396e-05,2]
[346778304,1735282238711,-5098.84,9.396e-05,2]
[346778305,1735282238721,-624.73908775,9.396e-05,2]
[346778306,1735282238731,-500.0,9.396e-05,2]
[346778307,1735282238742,-500.0,9.396e-05,2]
[346778308,1735282238751,-576.92,9.396e-05,2]
[346778309,1735282238760,-639.57725096,9.396e-05,2]
[346778310,1735282238770,-500.0,9.396e-05,2]
[346778311,1735282238779,-500.0,9.396e-05,2]
[346778312,1735282238788,-500.0,9.396e-05,2]
[346778313,1735282238797,-500.0,9.396e-05,2]
[346778314,1735282238807,-500.0,9.396e-05,2]
[346778315,1735282238817,-565.24,9.396e-05,2]
[346778316,1735282238826,-500.0,9.396e-05,2]
[346778317,1735282238835,-500.0,9.396e-05,2]
[346778318,1735282238844,-500.0,9.396e-05,2]
[346778319,1735282238854,-500.0,9.396e-05,2]
[346778320,1735282238863,-500.0,9.396e-05,2]
[346778321,1735282238872,-1534.92,9.396e-05,2]
[346778322,1735282238883,-500.0,9.396e-05,2]
[346778323,1735282238895,-500.0,9.396e-05,2]
[346778324,1735282238906,-500.0,9.396e-05,2]
[346778325,1735282238916,-500.0,9.396e-05,2]
[346778326,1735282238928,-500.0,9.396e-05,2]
[346778327,1735282238937,-500.0,9.396e-05,2]
[346778328,1735282238946,-500.0,9.396e-05,2]
[346778329,1735282238956,-500.0,9.396e-05,2]
[346778330,1735282238966,-513.0,9.396e-05,2]
[346778331,1735282238976,-669.95,9.396e-05,2]
[346778332,1735282238986,-500.0,9.396e-05,2]
[346778333,1735282238996,-500.0,9.396e-05,2]
[346778334,1735282239006,-500.0,9.396e-05,2]
[346778335,1735282239016,-500.0,9.396e-05,2]
[346778336,1735282239025,-504.99930374,9.396e-05,2]
[346778337,1735282239034,-151.0,9.396e-05,2]
[346778338,1735282239043,-151.0,9.396e-05,2]
[346778339,1735282239053,-151.0,9.396e-05,2]
[346778340,1735282239062,-206.257281,9.396e-05,2]
[346778341,1735282239072,-500.0,9.396e-05,2]
[346778342,1735282239082,-500.0,9.396e-05,2]
[346778343,1735282239093,-500.0,9.396e-05,2]
[346778344,1735282239102,-500.0,9.396e-05,2]
[346778345,1735282239112,-502.48861913,9.396e-05,2]
[346778346,1735282239122,-500.0,9.396e-05,2]
[346778347,1735282239131,-500.0,9.396e-05,2]
[346778348,1735282239141,-500.0,9.396e-05,2]
[346778349,1735282239152,-544.4543932,9.396e-05,2]
[346778350,1735282239162,-500.0,9.396e-05,2]
[346778351,1735282239172,-500.0,9.396e-05,2]
[346778352,1735282239181,-500.0,9.396e-05,2]
[346778353,1735282239191,-500.0,9.396e-05,2]
[346778354,1735282239201,-500.0,9.396e-05,2]
[346778355,1735282239211,-500.0,9.396e-05,2]
[346778356,1735282239220,-369.38004578,9.396e-05,2]
[346778357,1735282239230,-501.56261308,9.396e-05,2]
[346778358,1735282239240,-500.0,9.396e-05,2]
[346778359,1735282239249,-500.0,9.396e-05,2]
[346778360,1735282239259,-719.86,9.396e-05,2]
[346778361,1735282239269,-500.0,9.396e-05,2]
[346778362,1735282239278,-500.0,9.396e-05,2]
[346778363,1735282239288,-500.0,9.396e-05,2]
[346778364,1735282239298,-500.0,9.396e-05,2]
[346778365,1735282239307,-504.92979578,9.396e-05,2]
[346778366,1735282239317,-500.0,9.396e-05,2]
[346778367,1735282239327,-500.0,9.396e-05,2]
[346778368,1735282239336,-500.0,9.396e-05,2]
[346778369,1735282239345,-500.0,9.396e-05,2]
[346778370,1735282239355,-500.0,9.397e-05,2]
[346778371,1735282239366,-505.06461988,9.397e-05,2]
[346778372,1735282239375,-506.1785263,9.397e-05,2]
[346778373,1735282239385,-507.09358732,9.397e-05,2]
[346778374,1735282239395,-521.68,9.397e-05,2]
[346778375,1735282239404,-521.68,9.397e-05,2]
[346778376,1735282239414,-1253.500632,9.397e-05,2]
[346778377,1735282239423,-1253.500632,9.397e-05,2]
[346778378,1735282239433,-1253.500632,9.397e-05,2]
[346778379,1735282239442,-1253.500632,9.397e-05,2]
[346778380,1735282239452,-1253.500632,9.397e-05,2]
[346778381,1735282239461,-1253.500632,9.397e-05,2]
[346778382,1735282239471,-1253.500632,9.397e-05,2]
[346778383,1735282239481,-1253.500632,9.397e-05,2]
[346778384,1735282239492,-151.0,9.397e-05,2]
[346778385,1735282239502,-151.0,9.397e-05,2]
[346778386,1735282239511,-151.0,9.397e-05,2]
[346778387,1735282239520,-163.910957,9.397e-05,2]
[346778389,1735282239530,-502.19852317,9.397e-05,2]
[346778391,1735282239539,-500.0,9.397e-05,2]
[346778392,1735282239549,-500.0,9.397e-05,2]
[346778393,1735282239559,-500.0,9.397e-05,2]
[346778394,1735282239568,-504.44990867,9.397e-05,2]
[346778395,1735282239577,-500.0,9.397e-05,2]
[346778396,1735282239587,-500.0,9.397e-05,2]
[346778397,1735282239597,-500.0,9.397e-05,2]
[346778398,1735282239606,-502.86552972,9.397e-05,2]
[346778399,1735282239616,-504.02342902,9.397e-05,2]
[346778400,1735282239625,-500.0,9.397e-05,2]
[346778401,1735282239634,-500.0,9.397e-05,2]
[346778402,1735282239644,-339.64899403,9.397e-05,2]
[346778403,1735282239654,-500.0,9.397e-05,2]
[346778405,1735282239664,-199.4350139,9.397e-05,2]
[346778406,1735282239673,-500.0,9.397e-05,2]
[346778407,1735282239682,-500.0,9.397e-05,2]
[346778408,1735282239692,-500.0,9.397e-05,2]
[346778409,1735282239701,-500.0,9.397e-05,2]
[346778410,1735282239711,-500.0,9.397e-05,2]
[346778411,1735282239720,-500.0,9.397e-05,2]
[346778412,1735282239729,-500.0,9.397e-05,2]
[346778413,1735282239739,-500.0,9.397e-05,2]
[346778414,1735282239749,-500.0,9.397e-05,2]
[346778415,1735282239758,-521.68,9.398e-05,2]
[346778417,1735282239768,-521.68,9.398e-05,2]
[346778418,1735282239777,-1253.500632,9.398e-05,2]
[346778419,1735282239787,-1253.500632,9.398e-05,2]
[346778420,1735282239797,-500.0,9.398e-05,2]
[346778421,1735282239807,-508.74944641,9.398e-05,2]
[346778422,1735282239816,-500.0,9.398e-05,2]
[346778423,1735282239826,-500.0,9.398e-05,2]
[346778424,1735282239835,-5167.57,9.398e-05,2]
[346778425,1735282239844,-500.0,9.398e-05,2]
[346778426,1735282239854,-589.54,9.398e-05,2]
[346778428,1735282239864,-1253.500632,9.399e-05,2]
[346778429,1735282239874,-1253.500632,9.399e-05,2]
[346778431,1735282239885,-500.63216911,9.399e-05,2]
[346778432,1735282239895,-7378.93,9.399e-05,2]
[346778433,1735282239905,-521.68,9.4e-05,2]
[346778434,1735282239915,-1253.500632,9.401e-05,2]
[346778435,1735282239925,-1253.500632,9.401e-05,2]
[346778436,1735282239935,-1253.500632,9.401e-05,2]
[346778437,1735282239945,-1253.500624,9.401e-05,2]
[346778438,1735282239954,-185.26285085,9.403e-05,2]
[346778439,1735282240034,-521.68,9.403e-05,2]
[346778440,1735282240054,-2710.15957572,9.403e-05,2]
[346778441,1735282240064,-500.0,9.415e-05,2]
[346778442,1735282240073,-201.78197896,9.42e-05,2]
[346778443,1735282240083,-521.68,9.504e-05,2]
[346778444,1735282240092,-521.68,9.504e-05,2]
[346778445,1735282240102,-521.68,9.504e-05,2]
[346778446,1735282240111,-521.68,9.504e-05,2]
[346778447,1735282240121,-521.68,9.504e-05,2]
[346778448,1735282240130,-521.68,9.504e-05,2]
[346778449,1735282240140,-13013.0,9.505e-05,2]
[346778450,1735282240149,-13009.0,9.505e-05,2]
[346778451,1735282240159,-13009.0,9.505e-05,2]
[346778452,1735282240169,-13009.0,9.505e-05,2]
[346778453,1735282240179,-13009.0,9.505e-05,2]
[346778454,1735282240188,-13009.0,9.505e-05,2]
[346778455,1735282240198,-13009.0,9.505e-05,2]
[346778456,1735282240207,-13009.0,9.505e-05,2]
[346778457,1735282240217,-153.7505718,9.51e-05,2]
[346778458,1735282240226,-158.4931375,9.51e-05,2]
[346778459,1735282240235,-154.2216149,9.51e-05,2]
[346778460,1735282240246,-428.0202751,9.51e-05,2]
[346778461,1735282240255,-352.2473484,9.51e-05,2]
[346778462,1735282240265,-214.2645371,9.51e-05,2]
[346778463,1735282240274,-704.1859437,9.51e-05,2]
[346778464,1735282240284,-153.4628105,9.51e-05,2]
[346778465,1735282240294,-352.3236556,9.55e-05,2]
[346778466,1735282240303,-428.4656794,9.55e-05,2]
[346778467,1735282240313,-153.4628105,9.55e-05,2]
[346778468,1735282240323,-214.2645371,9.55e-05,2]
[346778469,1735282240332,-666.0,9.571e-05,2]
[346778470,1735282240342,-352.3665978,9.58e-05,2]
[346778471,1735282240352,-214.2645371,9.58e-05,2]
[346778472,1735282240361,-208.5491325,9.58e-05,2]
[346778473,1735282240371,-517.8813997,9.58e-05,2]
[346778474,1735282240380,-352.3236556,9.58e-05,2]
[346778475,1735282240389,-214.2328397,9.58e-05,2]
[346778476,1735282240399,-352.3236556,9.58e-05,2]
[346778477,1735282240408,-428.4656794,9.58e-05,2]
[346778478,1735282240417,-352.3665978,9.58e-05,2]
[346778479,1735282240426,-153.4628105,9.58e-05,2]
[346778480,1735282240435,-153.5264273,9.58e-05,2]
[346778481,1735282240445,-427.8385486,9.58e-05,2]
[346778482,1735282240454,-213.7739277,9.58e-05,2]
[346778483,1735282240463,-153.0,9.58e-05,2]
[346778484,1735282240472,-352.3665978,9.58e-05,2]